bitfinex-derivatives/quotes_SOLF0:USTF0_20250509
["timestamp","ask_amount","ask_price","bid_price","bid_amount"]
[1746780742794,5.9902,166.93,166.83,16.78461791]
[1746780743097,5.9896,166.95,166.9,5.9911]
[1746780743296,351.019,166.97,166.83,16.78461791]
[1746780743490,351.019,166.97,166.81,62.0]
[1746780743790,349.0133,166.97,166.84,16.78461791]
[1746780744197,1.97,167.01,166.88,16.78461791]
[1746780744599,1.9949,167.02,166.88,16.78461791]
[1746780744897,1.9019,167.03,166.88,16.78461791]
[1746780745091,3.986,167.07,166.92,16.78461791]
[1746780745294,3.986,167.07,166.93,517.78]
[1746780745792,5.9869,167.03,166.93,517.78]
[1746780746099,3.986,167.07,166.93,517.78]
[1746780746301,5.9884,166.98,166.93,523.7699]
[1746780746597,3.986,167.07,166.93,517.78]
[1746780746797,5.9886,166.98,166.93,517.78]
[1746780746999,1.07028772,167.06,166.93,517.78]
[1746780747201,16.78461791,167.04,166.93,517.78]
[1746780747497,349.0133,167.03,166.93,517.78]
[1746780748299,349.0133,167.03,166.84,517.68]
[1746780748499,1.07058209,167.02,166.84,517.68]
[1746780748991,2.0284,167.01,166.84,517.68]
[1746780749394,1.07058209,167.0,166.84,517.68]
[1746780749595,5.9901,166.94,166.84,517.68]
[1746780750104,2.0284,167.01,166.9,5.9911]
[1746780750293,349.0133,167.0,166.84,517.68]
[1746780750491,5.9895,166.95,166.91,5.9906]
[1746780750700,349.0133,167.0,166.84,517.68]
[1746780751204,349.0133,167.0,166.89,5.9914]
[1746780751205,5.9902,166.93,166.89,5.9914]
[1746780751399,5.9902,166.93,166.84,517.68]
[1746780751599,5.9902,166.93,166.89,5.9914]
[1746780751805,349.0133,167.0,166.84,517.68]
[1746780752703,349.0133,167.0,166.9,5.991]
[1746780752905,5.9894,166.96,166.84,517.68]
[1746780753207,349.0133,167.0,166.92,5.9905]
[1746780753394,5.9895,166.95,166.84,517.68]
[1746780753597,349.0133,167.0,166.85,16.78461791]
[1746780754005,5.989,166.97,166.85,16.78461791]
[1746780754201,349.0133,167.0,166.95,5.9894]
[1746780754401,2.0284,167.01,166.95,5.9894]
[1746780754705,349.0133,167.05,166.89,16.78461791]
[1746780754904,3.986,167.07,166.93,16.78461791]
[1746780755107,2.016,167.07,166.93,16.78461791]
[1746780755700,349.0133,167.1,166.93,16.78461791]
[1746780755907,349.0133,167.1,167.01,5.987]
[1746780756110,349.0133,167.1,166.97,517.66]
[1746780756500,5.9858,167.06,167.01,5.987]
[1746780756709,1.9409,167.12,166.97,534.44461791]
[1746780757107,5.9849,167.08,166.97,534.44461791]
[1746780757304,3.8734,167.13,166.97,534.44461791]
[1746780757508,3.8734,167.13,167.06,5.9852]
[1746780757710,349.0133,167.16,167.01,16.78461791]
[1746780758107,349.0133,167.16,167.1,5.9838]
[1746780758301,3.9794,167.17,167.1,5.9838]
[1746780758713,3.9794,167.17,167.01,16.78461791]
[1746780758917,3.9794,167.17,167.01,78.78461791]
[1746780759107,3.9794,167.17,167.01,16.78461791]
[1746780759307,3.9794,167.17,167.04,5.986]
[1746780759507,5.9842,167.1,166.97,517.66]
[1746780759707,3.9794,167.17,167.05,5.9858]
[1746780760112,5.9845,167.09,167.0,16.78461791]
[1746780760409,3.9794,167.17,166.97,517.66]
[1746780760713,16.78461791,167.15,166.97,517.66]
[1746780761214,5.9866,167.03,166.97,517.66]
[1746780761411,365.79791791,167.11,166.97,517.66]
[1746780761811,16.78461791,167.07,166.97,517.66]
[1746780762011,354.8479,167.06,166.97,517.66]
[1746780762317,5.9882,166.99,166.97,517.66]
[1746780762516,354.8479,167.06,166.97,523.6487]
[1746780763016,5.9877,167.0,166.97,517.66]
[1746780763217,354.8479,167.06,166.97,517.66]
[1746780763415,5.9883,166.99,166.97,517.66]
[1746780763616,349.0133,167.05,166.94,5.9895]
[1746780763813,349.0133,167.04,166.88,534.20461791]
[1746780764016,5.9887,166.98,166.88,534.20461791]
[1746780764209,5.9887,166.98,166.94,5.9895]
[1746780764616,5.9881,166.99,166.88,534.20461791]
[1746780764916,349.0133,167.04,166.88,534.20461791]
[1746780765117,5.9876,167.01,166.88,534.20461791]
[1746780765320,349.0133,167.04,166.88,534.20461791]
[1746780765619,5.9874,167.01,166.89,16.78461791]
[1746780765817,349.0133,167.04,166.98,5.9883]
[1746780766216,5.9872,167.02,166.98,5.9883]
[1746780766417,349.0133,167.04,166.89,16.78461791]
[1746780766718,5.9869,167.03,166.89,78.78461791]
[1746780767019,349.0133,167.04,166.89,78.78461791]
[1746780767919,5.9876,167.01,166.89,78.78461791]
[1746780768221,349.0133,167.04,166.93,16.78461791]
[1746780768612,349.0133,167.04,166.97,5.9884]
[1746780768814,5.8346,167.06,166.93,16.78461791]
[1746780769122,5.8346,167.06,166.89,62.0]
[1746780769314,5.8346,167.06,166.88,534.20461791]
[1746780769814,17.85501778,167.05,166.93,5.9899]
[1746780770019,5.9885,166.98,166.88,534.20461791]
[1746780770318,349.0133,167.04,166.93,5.9901]
[1746780770520,5.9886,166.98,166.93,5.9901]
[1746780770821,349.0133,167.04,166.93,5.9901]
[1746780771117,349.0133,167.04,166.92,5.9905]
[1746780771317,349.0133,167.03,166.88,534.20461791]
[1746780771620,5.9885,166.98,166.88,534.20461791]
[1746780772320,5.9885,166.98,166.93,5.9899]
[1746780772822,349.0133,167.03,166.92,5.9905]
[1746780773016,16.78461791,167.01,166.84,16.78461791]
[1746780773228,16.78461791,167.01,166.84,517.48]
[1746780773520,1.07075506,167.0,166.88,5.9917]
[1746780773919,349.0133,166.99,166.84,517.48]
[1746780774223,16.78461791,166.97,166.84,517.48]
[1746780774522,4.96075506,166.96,166.84,517.48]
[1746780774717,1.07075506,166.95,166.84,517.48]
[1746780775021,5.9923,166.88,166.84,517.48]
[1746780775522,5.9908,166.92,166.84,517.48]
[1746780775723,349.0133,166.94,166.84,517.48]
[1746780777624,3.89,166.96,166.84,517.48]
[1746780778227,5.9912,166.91,166.85,5.9928]
[1746780778926,3.89,166.96,166.86,5.9926]
[1746780779228,3.89,166.96,166.84,517.48]
[1746780782029,5.9897,166.95,166.84,517.48]
[1746780782221,3.89,166.96,166.84,517.48]
[1746780782625,5.9898,166.94,166.84,517.48]
[1746780782827,3.89,166.96,166.84,517.48]
[1746780783326,5.9912,166.91,166.87,5.9921]
[1746780783629,3.89,166.96,166.84,517.48]
[1746780784221,5.9908,166.92,166.84,517.48]
[1746780784426,3.89,166.96,166.84,517.48]
[1746780784726,3.89,166.96,166.88,5.9919]
[1746780785025,3.89,166.96,166.84,517.48]
[1746780785327,5.9908,166.92,166.88,5.9919]
[1746780785530,3.89,166.96,166.84,517.48]
[1746780785827,5.9902,166.93,166.89,5.9915]
[1746780786028,3.89,166.96,166.84,534.26461791]
[1746780786328,5.9901,166.94,166.84,534.26461791]
[1746780786528,3.89,166.96,166.84,534.26461791]
[1746780786824,5.9897,166.95,166.84,534.26461791]
[1746780787225,349.0133,166.97,166.84,534.26461791]
[1746780787424,5.9903,166.93,166.84,534.26461791]
[1746780787625,349.0133,166.97,166.84,534.26461791]
[1746780788427,1.8893,166.98,166.84,534.26461791]
[1746780788623,5.989,166.97,166.84,534.26461791]
[1746780788833,349.0133,167.02,166.88,16.78461791]
[1746780789233,349.0133,167.02,166.84,534.26461791]
[1746780789433,349.0133,167.02,166.84,517.48]
[1746780789733,11.975,167.01,166.86,5.9925]
[1746780789934,18.0,167.01,166.84,517.48]
[1746780790131,5.9921,166.88,166.84,523.4732]
[1746780790631,5.9919,166.89,166.84,523.4732]
[1746780790833,16.78461791,166.97,166.84,517.48]
[1746780791032,349.0133,166.96,166.84,517.48]
[1746780791431,5.9931,166.85,166.84,517.48]
[1746780792133,5.9934,166.84,166.83,1.0]
[1746780793629,16.78461791,166.89,166.76,225.8245361]
[1746780793833,349.0133,166.88,166.76,225.8245361]
[1746780794032,349.0133,166.88,166.78,5.9954]
[1746780794831,349.0133,166.88,166.76,225.8245361]
[1746780795633,349.0133,166.88,166.76,226.8311361]
[1746780796329,5.9928,166.86,166.82,5.9941]
[1746780796525,353.0425,166.94,166.79,16.78461791]
[1746780796932,10.0191,166.94,166.82,16.78461791]
[1746780797229,349.0133,167.02,166.82,16.78461791]
[1746780797428,353.0096,167.01,166.82,16.78461791]
[1746780797631,354.08026582,167.01,166.82,16.78461791]
[1746780797831,353.0096,167.01,166.82,16.78461791]
[1746780798636,353.0096,167.01,166.86,16.78461791]
[1746780798837,353.0096,167.01,166.87,1.0066]
[1746780799028,353.0096,167.01,166.87,518.8466]
[1746780799431,2.021,167.01,166.96,5.9889]
[1746780799642,1.9543,167.03,166.9,16.78461791]
[1746780799835,3.9039,167.07,166.94,16.78461791]
[1746780800035,5.9864,167.04,166.97,5.9886]
[1746780800237,3.9039,167.07,166.89,62.0]
[1746780800437,3.9039,167.07,166.93,16.78461791]
[1746780800645,3.9039,167.07,166.95,5.9891]
[1746780800842,3.9039,167.07,166.93,16.78461791]
[1746780801030,3.9039,167.07,166.89,62.0]
[1746780801234,3.9039,167.07,166.92,16.78461791]
[1746780801640,3.9039,167.07,166.94,5.9895]
[1746780801844,3.9039,167.07,166.92,16.78461791]
[1746780802036,3.9039,167.07,166.89,62.0]
[1746780802235,5.9876,167.01,166.94,5.9898]
[1746780802541,3.9039,167.07,166.88,16.78461791]
[1746780802743,16.78461791,167.05,166.88,16.78461791]
[1746780803247,16.78461791,167.01,166.87,518.8466]
[1746780803445,2.011,167.0,166.87,517.84]
[1746780803942,1.9519,166.99,166.87,517.84]
[1746780804444,1.8544,166.98,166.87,517.84]
[1746780805343,1.8544,166.98,166.88,5.9916]
[1746780805739,1.8544,166.98,166.87,517.84]
[1746780806136,365.79791791,166.97,166.81,1.0039]
[1746780806345,5.9935,166.84,166.8,5.9948]
[1746780806543,16.78461791,166.93,166.79,517.68]
[1746780806841,5.9931,166.85,166.79,517.68]
[1746780807040,349.0133,166.92,166.79,517.68]
[1746780807238,3.8923,166.91,166.79,517.68]
[1746780808344,3.8923,166.91,166.79,518.68]
[1746780808548,5.9933,166.85,166.79,524.6749]
[1746780808842,3.8923,166.91,166.79,518.68]
[1746780810245,2.0044,166.91,166.86,5.9924]
[1746780810841,2.0044,166.91,166.87,5.9923]
[1746780811045,2.0044,166.91,166.79,518.68]
[1746780811847,5.9919,166.89,166.83,5.9935]
[1746780812142,5.9919,166.89,166.79,518.68]
[1746780812335,2.0044,166.91,166.79,518.68]
[1746780812735,349.0133,166.92,166.79,518.68]
[1746780812939,355.0041,166.92,166.82,16.78461791]
[1746780813139,349.0133,166.92,166.82,16.78461791]
[1746780813337,3.8842,166.97,166.82,16.78461791]
[1746780813538,1.9772,166.97,166.82,16.78461791]
[1746780813844,349.0133,167.02,166.8,16.78461791]
[1746780814137,1.9511,167.03,166.8,16.78461791]
[1746780814138,5.9779,167.03,166.87,16.78461791]
[1746780814343,5.9779,167.03,166.88,1.0067]
[1746780814843,5.9874,167.01,166.88,1.0067]
[1746780815044,5.9779,167.03,166.88,1.0067]
[1746780815544,5.988,167.0,166.88,1.0067]
[1746780815848,5.988,167.0,166.88,63.0067]
[1746780816150,5.9779,167.03,166.88,1.0067]
[1746780816751,5.9888,166.97,166.92,5.9903]
[1746780817138,5.9779,167.03,166.88,1.0067]
[1746780817343,354.9912,167.03,166.9,5.9909]
[1746780817544,354.9912,167.03,166.88,1.0067]
[1746780817749,354.9912,167.03,166.9,5.9913]
[1746780818146,354.9912,167.03,166.88,1.0067]
[1746780818348,354.9912,167.03,166.9,5.9912]
[1746780818651,354.9912,167.03,166.88,1.0067]
[1746780819150,354.9912,167.03,166.81,62.0]
[1746780819347,5.9905,166.93,166.88,5.9919]
[1746780819552,16.78461791,167.0,166.81,63.006]
[1746780819756,349.0133,166.99,166.81,1.006]
[1746780820051,5.993,166.86,166.79,7.86268705]
[1746780820249,16.78461791,166.92,166.79,7.86268705]
[1746780820448,354.7652,166.91,166.8,5.9948]
[1746780820649,349.0133,166.9,166.79,7.86268705]
[1746780820848,349.0133,166.9,166.79,1.0]
[1746780821949,5.993,166.86,166.79,1.0]
[1746780822455,5.9923,166.88,166.79,1.0]
[1746780822752,349.0133,166.9,166.79,1.0]
[1746780824154,5.9919,166.89,166.79,1.0]
[1746780824356,349.0133,166.9,166.79,1.0]
[1746780824649,5.9917,166.89,166.79,1.0]
[1746780824856,349.0133,166.9,166.79,1.0]
[1746780825049,349.0133,166.9,166.8,16.78461791]
[1746780825255,349.0133,166.99,166.8,16.78461791]
[1746780825450,349.0133,166.98,166.8,16.78461791]
[1746780825758,350.08417516,166.98,166.87,5.9922]
[1746780825954,349.0133,166.97,166.8,16.78461791]
[1746780826254,5.9908,166.92,166.8,16.78461791]
[1746780826455,349.0133,166.97,166.8,16.78461791]
[1746780826749,5.9915,166.9,166.84,5.9932]
[1746780827555,5.991,166.91,166.86,5.9927]
[1746780827757,349.0133,166.97,166.8,16.78461791]
[1746780828056,349.0133,166.96,166.84,5.9933]
[1746780828253,349.0133,166.96,166.8,16.78461791]
[1746780828652,5.9915,166.9,166.85,5.9928]
[1746780828854,349.0133,166.96,166.85,5.9928]
[1746780829263,349.0133,166.96,166.86,5.9927]
[1746780829451,349.0133,166.96,166.8,16.78461791]
[1746780829858,5.9915,166.9,166.85,5.9928]
[1746780830156,349.0133,166.96,166.85,5.9928]
[1746780830358,349.0133,166.96,166.86,5.9926]
[1746780830859,5.9916,166.9,166.8,16.78461791]
[1746780831249,5.9916,166.9,166.85,5.9929]
[1746780831455,5.9916,166.9,166.8,16.78461791]
[1746780832958,1.07103861,166.94,166.81,517.78]
[1746780833660,5.9933,166.85,166.81,517.78]
[1746780834058,349.0133,166.93,166.81,517.78]
[1746780834263,350.9778,166.92,166.81,517.78]
[1746780834460,3.906,166.91,166.81,517.78]
[1746780835962,3.906,166.91,166.84,5.9934]
[1746780836165,5.9917,166.89,166.81,517.78]
[1746780836366,3.906,166.91,166.81,517.78]
[1746780836567,3.906,166.91,166.85,5.9928]
[1746780836865,3.906,166.91,166.81,517.78]
[1746780837365,5.9919,166.89,166.81,517.78]
[1746780837565,3.906,166.91,166.86,5.9926]
[1746780837765,3.906,166.91,166.81,517.78]
[1746780838264,349.0133,166.98,166.81,517.78]
[1746780838462,5.9908,166.92,166.81,517.78]
[1746780838866,5.8349,166.97,166.87,5.9921]
[1746780839263,5.8349,166.97,166.81,534.56461791]
[1746780840361,5.8349,166.97,166.86,5.9924]
[1746780840665,5.8349,166.97,166.81,517.78]
[1746780841271,5.9913,166.9,166.81,517.78]
[1746780841474,5.9913,166.9,166.85,5.9928]
[1746780841671,5.9916,166.89,166.85,5.9928]
[1746780841874,5.8349,166.97,166.81,517.78]
[1746780842074,349.0133,166.96,166.81,517.78]
[1746780842866,5.9928,166.86,166.81,517.78]
[1746780843387,349.0133,166.96,166.81,534.56461791]
[1746780843574,349.0133,166.96,166.81,517.78]
[1746780843767,16.78461791,166.95,166.81,523.7742]
[1746780843973,5.993,166.86,166.81,523.7742]
[1746780844478,16.78461791,166.95,166.81,523.7742]
[1746780844479,16.78461791,166.95,166.81,517.78]
[1746780844676,349.0133,166.94,166.81,517.78]
[1746780844870,349.0133,166.93,166.81,517.78]
[1746780845075,16.78461791,166.91,166.79,1.0]
[1746780845271,16.78461791,166.87,166.79,1.0]
[1746780845475,354.7597,166.86,166.79,1.0]
[1746780845674,5.9949,166.8,166.79,1.0]
[1746780846483,354.7597,166.86,166.79,1.0]
[1746780846978,5.9935,166.84,166.79,1.0]
[1746780847181,354.7597,166.86,166.79,1.0]
[1746780848483,5.9933,166.85,166.81,5.9944]
[1746780849077,349.0133,166.86,166.79,1.0]
[1746780849974,352.8588,166.93,166.79,1.0]
[1746780850180,349.0133,166.92,166.79,1.0]
[1746780850581,5.9944,166.82,166.79,1.0]
[1746780850771,365.79791791,166.91,166.79,1.0]
[1746780850976,349.0133,166.9,166.79,1.0]
[1746780851174,16.78461791,166.87,166.75,225.8835682]
[1746780851378,16.78461791,166.83,166.71,517.82]
[1746780851572,350.992,166.82,166.71,517.82]
[1746780851785,5.9973,166.74,166.71,517.82]
[1746780852380,5.9974,166.73,166.71,517.82]
[1746780852581,5.9974,166.73,166.66,6.86268705]
[1746780852881,349.0133,166.8,166.66,6.86268705]
[1746780853082,5.9955,166.79,166.66,6.86268705]
[1746780853282,349.0133,166.8,166.66,6.86268705]
[1746780853683,349.0133,166.8,166.69,5.9987]
[1746780853982,349.0133,166.8,166.66,6.86268705]
[1746780854184,349.0133,166.8,166.7,5.9984]
[1746780854380,349.0133,166.8,166.66,6.86268705]
[1746780854579,349.0133,166.8,166.65,1.0083]
[1746780855084,349.0133,166.8,166.66,16.84060988]
[1746780855782,349.0133,166.8,166.72,5.9974]
[1746780855982,349.0133,166.8,166.66,16.84060988]
[1746780856191,349.0133,166.8,166.65,1.0083]
[1746780856375,1.9169,166.79,166.65,1.0083]
[1746780856779,2.0242,166.78,166.66,16.84060988]
[1746780856974,1.9169,166.79,166.66,16.84060988]
[1746780857382,349.0133,166.8,166.7,16.84060988]
[1746780858482,1.9787,166.82,166.66,11.9998]
[1746780858687,1.9787,166.82,166.72,16.84060988]
[1746780859191,1.9787,166.82,166.66,11.9998]
[1746780859391,1.9787,166.82,166.72,16.84060988]
[1746780860186,1.9787,166.82,166.79,5.9949]
[1746780860384,1.9787,166.82,166.72,16.84060988]
[1746780860583,1.9787,166.82,166.78,5.9952]
[1746780860783,3.9411,166.84,166.72,518.06]
[1746780860989,3.9411,166.84,166.75,16.84060988]
[1746780861390,1.9169,166.84,166.75,16.84060988]
[1746780861888,1.9169,166.84,166.82,5.9939]
[1746780862091,1.9169,166.84,166.74,1.01]
[1746780862291,1.8666,166.87,166.74,1.01]
[1746780862589,1.8666,166.87,166.76,16.84060988]
[1746780862798,1.8666,166.87,166.74,1.01]
[1746780862980,1.8666,166.87,166.85,5.9928]
[1746780863990,1.8666,166.87,166.74,1.01]
[1746780864288,1.8666,166.87,166.81,5.9944]
[1746780864790,5.9931,166.85,166.8,5.9947]
[1746780864985,1.8666,166.87,166.8,5.9947]
[1746780865192,1.9593,166.86,166.73,1.0151]
[1746780865392,5.994,166.83,166.78,5.9955]
[1746780865586,1.9621,166.85,166.78,5.9955]
[1746780865785,5.9945,166.81,166.73,1.0151]
[1746780865986,1.9621,166.85,166.73,1.0151]
[1746780866591,5.9941,166.83,166.78,5.9953]
[1746780866791,1.9621,166.85,166.73,1.0151]
[1746780867095,1.9621,166.85,166.72,534.90060988]
[1746780867793,1.9621,166.85,166.78,5.9955]
[1746780868288,1.9621,166.85,166.72,534.90060988]
[1746780868490,1.9621,166.85,166.77,5.9957]
[1746780868686,1.9621,166.85,166.72,534.90060988]
[1746780868991,5.9951,166.8,166.72,534.90060988]
[1746780869293,1.9621,166.85,166.72,534.90060988]
[1746780869493,5.9946,166.81,166.77,5.9957]
[1746780869795,1.9621,166.85,166.72,534.90060988]
[1746780870190,1.9621,166.85,166.72,518.06]
[1746780870389,1.9621,166.85,166.72,534.90060988]
[1746780870595,5.9934,166.84,166.72,535.90060988]
[1746780870996,1.9621,166.85,166.78,5.9953]
[1746780871193,1.9621,166.85,166.72,535.90060988]
[1746780871595,5.9948,166.81,166.76,5.9961]
[1746780871897,1.9621,166.85,166.72,519.06]
[1746780872095,1.9621,166.85,166.75,5.9965]
[1746780872794,365.85390988,166.84,166.72,519.06]
[1746780872993,349.0133,166.83,166.72,519.06]
[1746780873194,349.0133,166.82,166.72,519.06]
[1746780873399,349.0133,166.81,166.72,1.0]
[1746780873696,349.0133,166.8,166.72,1.0]
[1746780873896,5.9969,166.75,166.72,1.0]
[1746780874195,5.9969,166.75,166.63,518.0]
[1746780874196,349.0133,166.79,166.63,518.0]
[1746780874389,3.8373,166.74,166.63,518.0]
[1746780874590,3.8373,166.74,166.68,5.9992]
[1746780874896,3.8373,166.74,166.63,534.84060988]
[1746780875098,9.8345,166.74,166.69,5.9986]
[1746780875296,3.8373,166.74,166.63,534.84060988]
[1746780875592,349.0133,166.78,166.63,534.84060988]
[1746780875797,349.0133,166.78,166.67,16.84060988]
[1746780876092,3.8818,166.83,166.63,518.0]
[1746780876300,3.8818,166.83,166.64,16.84060988]
[1746780876490,3.8818,166.83,166.69,16.84060988]
[1746780876695,5.9946,166.81,166.76,5.9962]
[1746780876997,3.8818,166.83,166.76,5.9962]
[1746780877298,3.8818,166.83,166.69,16.84060988]
[1746780877798,5.9942,166.82,166.76,5.996]
[1746780878096,3.8818,166.83,166.7,16.84060988]
[1746780878297,5.9955,166.79,166.73,5.9971]
[1746780878497,3.8818,166.83,166.7,16.84060988]
[1746780878897,5.9943,166.82,166.75,5.9964]
[1746780879097,3.8818,166.83,166.75,5.9964]
[1746780879498,5.9948,166.81,166.75,5.9964]
[1746780879798,3.8818,166.83,166.75,5.9964]
[1746780880099,3.8818,166.83,166.74,5.9969]
[1746780880498,3.8818,166.83,166.7,16.84060988]
[1746780880699,3.8818,166.83,166.72,5.9977]
[1746780880904,3.8818,166.83,166.69,1.0101]
[1746780881198,3.8818,166.83,166.69,17.85070988]
[1746780881393,5.9955,166.79,166.74,5.997]
[1746780881599,3.8818,166.83,166.67,1.0151]
[1746780881794,10.36180834,166.8,166.65,1.0095]
[1746780882001,349.0133,166.79,166.61,1.0095]
[1746780882300,5.9987,166.7,166.65,6.0]
[1746780882695,351.0171,166.78,166.65,6.0]
[1746780882899,5.9987,166.7,166.66,5.9999]
[1746780883300,349.0133,166.77,166.61,1.0095]
[1746780883499,349.0133,166.76,166.61,1.0095]
[1746780883701,349.0133,166.75,166.61,1.0095]
[1746780884002,5.9979,166.72,166.67,5.9995]
[1746780884196,349.0133,166.75,166.67,5.9995]
[1746780884499,5.998,166.72,166.67,5.9995]
[1746780884800,349.0133,166.75,166.67,5.9995]
[1746780885002,349.0133,166.75,166.61,1.0095]
[1746780885500,5.9985,166.7,166.66,5.9998]
[1746780886506,5.9985,166.7,166.65,6.0001]
[1746780887004,3.9213,166.74,166.63,524.0007]
[1746780887503,5.9991,166.69,166.64,6.0003]
[1746780887698,5.9991,166.69,166.63,518.0]
[1746780887898,3.9213,166.74,166.63,518.0]
[1746780888603,5.9988,166.7,166.65,6.0001]
[1746780888803,3.9213,166.74,166.63,518.0]
[1746780889803,3.9213,166.74,166.66,5.9998]
[1746780890005,3.9213,166.74,166.63,518.0]
[1746780890301,3.9213,166.74,166.53,1.0441984]
[1746780890302,365.85997739,166.73,166.54,518.28]
[1746780890607,16.84667739,166.69,166.54,518.28]
[1746780890908,1.9998,166.68,166.54,518.28]
[1746780891803,6.0018,166.61,166.58,6.0025]
[1746780892103,1.9998,166.68,166.54,518.28]
[1746780892303,349.0133,166.67,166.54,518.28]
[1746780893002,6.0027,166.59,166.56,6.0034]
[1746780893195,349.0133,166.67,166.54,518.28]
[1746780893396,349.0133,166.66,166.54,518.28]
[1746780893599,16.84667739,166.65,166.54,518.28]
[1746780893808,20.80187739,166.65,166.48,1.0]
[1746780894104,349.0133,166.64,166.48,1.0]
[1746780894607,349.0133,166.64,166.49,16.84667739]
[1746780894810,349.0133,166.64,166.58,6.0026]
[1746780894811,6.0015,166.62,166.58,6.0026]
[1746780895001,349.0133,166.64,166.49,16.84667739]
[1746780895199,349.0133,166.64,166.48,1.0]
[1746780895895,349.0133,166.64,166.5,16.84667739]
[1746780896299,349.0133,166.64,166.54,16.84667739]
[1746780896606,3.9552,166.65,166.54,16.84667739]
[1746780896903,9.9555,166.65,166.54,16.84667739]
[1746780897309,3.9552,166.65,166.48,1.0]
[1746780897602,6.0018,166.61,166.57,6.0029]
[1746780898212,3.9552,166.65,166.56,6.0033]
[1746780898410,3.9552,166.65,166.5,16.84667739]
[1746780898811,3.9552,166.65,166.56,6.0034]
[1746780899014,3.9552,166.65,166.49,16.84667739]
[1746780899311,6.0023,166.6,166.55,6.0037]
[1746780899511,349.0133,166.64,166.48,17.84667739]
[1746780899711,6.0025,166.59,166.55,6.0038]
[1746780900011,349.0133,166.63,166.48,1.0]
[1746780900509,349.0133,166.63,166.5,16.84667739]
[1746780901312,6.0028,166.58,166.53,6.0045]
[1746780901508,349.0133,166.63,166.48,1.0]
[1746780901711,16.84667739,166.6,166.48,1.0]
[1746780901910,350.9592,166.59,166.48,1.0]
[1746780903512,350.9592,166.59,166.45,518.4]
[1746780903513,6.0071,166.47,166.45,518.4]
[1746780903711,349.0133,166.55,166.39,3.057]
[1746780903902,349.0133,166.54,166.39,3.057]
[1746780904304,349.0133,166.53,166.36,871.64201434]
[1746780904516,16.90425608,166.5,166.36,518.62]
[1746780904811,6.009,166.41,166.37,6.0102]
[1746780905004,351.002,166.49,166.36,518.62]
[1746780905202,6.0096,166.39,166.36,524.6304]
[1746780905403,365.91755608,166.48,166.36,518.62]
[1746780905612,349.0133,166.47,166.37,6.0103]
[1746780905911,349.0133,166.47,166.36,518.62]
[1746780906214,1.8595,166.46,166.36,518.62]
[1746780906509,1.8595,166.46,166.3,2.0358]
[1746780906812,349.0133,166.45,166.3,2.0358]
[1746780907310,349.0133,166.45,166.37,6.0101]
[1746780907710,6.0088,166.42,166.37,6.0101]
[1746780907913,349.0133,166.45,166.3,2.0358]
[1746780908114,349.0133,166.44,166.3,2.0358]
[1746780908320,349.0133,166.44,166.38,6.0098]
[1746780908613,349.0133,166.44,166.36,16.90425608]
[1746780908813,349.0133,166.44,166.3,2.0358]
[1746780909012,1.8595,166.46,166.4,6.009]
[1746780909211,1.8595,166.46,166.34,16.90425608]
[1746780909411,1.8595,166.46,166.39,6.0093]
[1746780909612,1.8595,166.46,166.34,16.90425608]
[1746780909817,1.9887,166.49,166.34,16.90425608]
[1746780910014,6.007,166.47,166.34,16.90425608]
[1746780910210,1.9887,166.49,166.34,16.90425608]
[1746780910408,6.0075,166.45,166.32,16.90425608]